Cogmind - Beta 16.1 @@@ ROGUE MODE // 2026.04.10 @ 11:49:41 Player: Maelyn Result: Destroyed by G-34 Mercenary with Small Laser Performance ------------- Evolutions (0) 0 Regions Visited (1) 200 Robots Destroyed (23) 115 Value Destroyed (411) 411 Prototype IDs (0) 0 Alien Tech Used (0) 0 Bonus (0) 0 TOTAL SCORE: 726 Bonus ------- None Cogmind --------- Core Integrity 0/250 Matter 300/300 Energy 100/100 System Corruption 0% Temperature Cool (6) Movement Core (200) Ox3 Location -10/Materials Parts ------- > --- POWER (1) -------- (None) > --- PROPULSION (2) --- (None) > --- UTILITY (2) ------ Medium Storage Unit > --- WEAPON (2) ------- Medium Laser > --- INVENTORY (10) --- Ion Engine Light Ion Engine Light Treads Aluminum Leg Aluminum Leg Aluminum Leg Seismic Detector ECM Suite Hardened Light Armor Plating Peak State ------------ > --- POWER ------------ Ion Engine > --- PROPULSION ------- Light Treads Light Treads > --- UTILITY ---------- Medium Storage Unit Hardened Light Armor Plating > --- WEAPON ----------- Heavy Assault Rifle Heavy Assault Rifle > --- INVENTORY -------- Ion Engine Light Ion Engine Light Treads Aluminum Leg Aluminum Leg Aluminum Leg Seismic Detector Hardened Light Armor Plating Medium Laser [Rating: 11] Favorites ----------- Power Ion Engine Engine Ion Engine Propulsion Light Treads Treads Light Treads Utility Hardened Light Armor Plating Storage Medium Storage Unit Protection Hardened Light Armor Plating Weapon Heavy Assault Rifle Energy Gun Medium Laser Ballistic Gun Heavy Assault Rifle Build | -11 -10 ------- Run | Yrd Mat Slots Evolved . | . . Power . | . . Propulsion . | . . Utility . | . . Weapon . | . . Parts Attached 12 | 6 6 Power 2 | 1 1 Engine 2 | 1 1 Core . | . . Reactor . | . . Propulsion 3 | 2 1 Treads 3 | 2 1 Leg . | . . Wheel . | . . Hover . | . . Flight . | . . Utility 3 | 1 2 Device . | . . Storage 2 | 1 1 Processor . | . . Hackware . | . . Protection 1 | . 1 Artifact . | . . Weapon 4 | 2 2 Energy Gun 1 | 1 . Energy Cannon . | . . Ballistic Gun 3 | 1 2 Ballistic Cannon . | . . Launcher . | . . Special Weapon . | . . Impact Weapon . | . . Slashing Weapon . | . . Piercing Weapon . | . . Special Melee Weapon . | . . Unidentified Prototypes . | . . Parts Lost 5 | . 5 Power 1 | . 1 Propulsion 2 | . 2 Utility 1 | . 1 Weapon 1 | . 1 Highest Loss Streak 4 | . 4 To Critical Strikes . | . . Average Backups 8 | 3 8 Power 1 | . 1 Propulsion 3 | 1 3 Utility 1 | . 1 Weapon 1 | 1 1 Tool/Special . | . . Unused Backups 13 | . 13 Power 4 | . 4 Propulsion 4 | . 4 Utility 3 | . 3 Weapon 2 | . 2 Tool/Special . | . . Average Slot Usage (%) 91 | . 91 Engine 12 | . 12 Treads 27 | . 27 Storage 14 | . 14 Protection 10 | . 10 Energy Gun 4 | . 4 Ballistic Gun 21 | . 21 Peak Build Rating 11 | 6 11 Average Rating 8 | 3 9 On Entrance 3 | . 6 Avg Prop Armor Cover (%) . | . . Naked Turns . | . . Heaviest Build 26 | 13 26 Greatest Support 40 | 40 40 Greatest Overweight (x) 3 | 3 3 Average Overweight (x) . | . . Largest Inventory Capacity 10 | 8 10 Average Capacity 9 | 7 9 Most Carried 10 | 6 10 Average Carried 8 | 4 8 Final Capacity 10 | 8 10 Final Carried 9 | 5 9 Class Distribution -------------------- 100% | Mutant Dominant Class ---------------- Mutant | -10/Materials Resources | -11 -10 ----------- Run | Yrd Mat Matter Collected 629 | 233 396 Remotely . | . . Salvage Created 654 | 12 642 Parts 56 | 2 54 Haulers Intercepted 2 | . 2 Recyclers Shooed . | . . Parts Field Recycled . | . . Retrieved Matter . | . . Parts Self-Destructed . | . . Prevented . | . . Parts Restored . | . . Kills | -11 -10 ------- Run | Yrd Mat Combat Hostiles Destroyed 15 | . 15 Guns 14 | . 14 Classes Destroyed 6 | 1 5 Worker 3 | . 3 Tunneler 1 | 1 . Hauler 2 | . 2 Watcher 2 | . 2 Swarmer 7 | . 7 Grunt 8 | . 8 Best Kill Streak 4 | 1 4 Combat Bots Only 3 | . 3 Max Kills in Single Turn 2 | 1 2 Gunslinging 1 | . 1 Exploded . | . . Melee . | . . Uniques/NPCs Destroyed . | . . Combat | -11 -10 -------- Run | Yrd Mat Hostile Shots Fired 145 | . 145 Missed 38 | . 38 Hits 107 | . 107 Projectile 107 | . 107 Critical Strikes 2 | . 2 Damage Taken 1100 | . 1100 Core 260 | . 260 Absorbed by Shields . | . . Core Remaining (%) 100 | 100 . Volleys Fired 65 | 2 63 Largest 2 | 2 2 Hottest 70 | 70 70 Shots Fired 116 | 4 112 Gun 116 | 4 112 Cannon . | . . Launcher . | . . Special . | . . Kinetic 94 | 2 92 Thermal 22 | 2 20 Explosive . | . . Electromagnetic . | . . Robot Hit Streak 5 | 2 5 Robot Miss Streak 3 | 1 3 Penetration Max . | . . Secondary Targets 1 | . 1 Max Gunslinging Chain 1 | . 1 Shots Hit Robots 61 | 3 58 Core Hits 28 | 2 26 Critical Kills . | . . Critical Parts Destroyed . | . . Critical Strikes 3 | . 3 Burn 3 | . 3 Melee Attacks . | . . Impact . | . . Slashing . | . . Piercing . | . . Sneak Attacks . | . . Combat Hostiles . | . . Follow-up Attacks . | . . Damage Inflicted 904 | 27 877 Guns 904 | 27 877 Cannons . | . . Explosions . | . . Melee . | . . Ramming . | . . Kinetic 685 | 14 671 Thermal 219 | 13 206 Explosive . | . . Electromagnetic . | . . Impact . | . . Slashing . | . . Piercing . | . . Highest Corruption . | . . Average Corruption . | . . Corruption Purged . | . . Corruption Blocked . | . . Overload Shots . | . . Overflow Damage . | . . Projectiles . | . . Explosions . | . . Melee . | . . Knockbacks . | . . Impact . | . . Kinetic . | . . Secondary . | . . Self-Inflicted Damage . | . . Shots . | . . Rammed . | . . Targets Rammed . | . . Kicked . | . . Crushed . | . . Highest Temperature 158 | 40 158 Average Temperature 49 | 20 51 Received Heat Transfer 414 | . 414 Siege Activations . | . . Martial Activations . | . . Shielding Activations . | . . Robots Disrupted . | . . Combat Hostiles . | . . Robots Corrupted . | . . Combat Hostiles . | . . Parts Fried . | . . Impact Corruptions . | . . Robots Melted 1 | . 1 Combat Hostiles 1 | . 1 Parts Melted . | . . Heat Transferred 851 | 37 814 Parts Sabotaged . | . . Parts Stolen . | . . Parts Stripped . | . . Power Chain Reactions . | . . Alert | -11 -10 ------- Run | Yrd Mat Maximum Alert Level . | . . Low Security (%) 100 | 100 100 Level 1 . | . . Level 2 . | . . Level 3 . | . . Level 4 . | . . Level 5 . | . . High Security . | . . Max Security . | . . Peak Influence 109 | 5 109 Initial . | . . Average 47 | . 52 Influence Increases 441 | 5 436 Destroy 0b10 Robot/C 300 | . 300 Destroy 0b10 Robot/NC 40 | 5 35 Destroy Leader 58 | . 58 Successful Hack 12 | . 12 Disable Machine 15 | . 15 Destroy Structure 1 | . 1 Lose Combat Pursuer 15 | . 15 Influence Decreases 384 | 5 379 Time Decay 334 | 5 329 Lost Part 50 | . 50 Squads Dispatched 2 | . 2 Investigation . | . . Extermination . | . . Reinforcement 2 | . 2 Assault . | . . Garrison . | . . Intercept . | . . Searches Triggered . | . . Construction Impeded . | . . Haulers Reinforced . | . . Active Scanning Responses . | . . Cargo Convoy Interrupts . | . . Stealth | -11 -10 --------- Run | Yrd Mat Distress Signals 1 | . 1 Communications Jammed . | . . Distress Signals . | . . Times Spotted 30 | . 30 Peak Tracking Total 4 | . 4 Tactical Retreats 1 | . 1 Traps | -11 -10 ------- Run | Yrd Mat Traps Triggered 4 | . 4 Indirectly . | . . Trap Hack Attempts . | . . Triggered . | . . Disarmed . | . . Reprogrammed . | . . Reused . | . . Traps Extracted . | . . Installed . | . . Triggered . | . . Machines | -11 -10 ---------- Run | Yrd Mat Machines Disabled 1 | . 1 Max in Single Turn 1 | . 1 Machines Repaired . | . . Machines Dismantled . | . . Machines Sabotaged . | . . Overloaded Fab Kills . | . . Hacking | -11 -10 --------- Run | Yrd Mat Machines Accessed 1 | . 1 Terminals 1 | . 1 Fabricators . | . . Repair Stations . | . . Recycling Units . | . . Scanalyzers . | . . Garrison Access . | . . Total Hacks 3 | . 3 Successful 2 | . 2 Failed 1 | . 1 Catastrophic . | . . Database Lockouts . | . . Manual 3 | . 3 Terminals 3 | . 3 Fabricators . | . . Repair Stations . | . . Recycling Units . | . . Scanalyzers . | . . Garrison Access . | . . Terminal Hacks 2 | . 2 Robot Analysis 2 | . 2 Fabricator Hacks . | . . Repair Station Hacks . | . . Recycling Unit Hacks . | . . Scanalyzer . | . . Garrison Access Hacks . | . . Unauthorized Hacks . | . . Terminals . | . . Fabricators . | . . Repair Stations . | . . Recycling Units . | . . Scanalyzers . | . . Garrison Access . | . . Data Cores Recovered . | . . Used . | . . Hacking Detections 1 | . 1 Full Trace Events 1 | . 1 Feedback Events . | . . Feedback Blocked . | . . Robot Schematics Acquired . | . . Robots Built . | . . Authchips . | . . Time . | . . Total Robot Build Rating . | . . Part Schematics Acquired . | . . Parts Built . | . . Authchips . | . . Time . | . . Total Part Build Rating . | . . Part Studies Acquired . | . . Parts Repaired . | . . Time . | . . Parts Recycled . | . . Recycled Matter . | . . Retrieved Matter . | . . Retrieved Components . | . . Parts Scanalyzed . | . . Part Schematics Acquired . | . . Parts Damaged . | . . Bothacking | -11 -10 ------------ Run | Yrd Mat Used RIF Installer . | . . Robots Hacked . | . . Non-combat . | . . Combat . | . . Robot Hacks Applied . | . . Relay Couplers Released . | . . Fabnet Peak Effective % . | . . Robots Rewired . | . . Allies Hacked . | . . Hacks Repelled . | . . Allies | -11 -10 -------- Run | Yrd Mat Total Allies . | . . Largest Group . | . . Highest-Rated Group . | . . Highest-Rated Ally . | . . Total Orders . | . . Ally Attacks . | . . Total Damage . | . . Kills . | . . Allies Corrupted . | . . Allies Melted . | . . Intel | -11 -10 ------- Run | Yrd Mat Active Infowar (turns) . | . . Robot Analysis Total 2 | . 2 Derelict Logs Recovered . | . . Drone Launches . | . . Drone Recoveries . | . . Exploration | -11 -10 ------------- Run | Yrd Mat Turns Passed 1030 | 92 938 Spaces Moved 505 | 48 457 Core 19 | 13 6 Treads 486 | 35 451 Legs . | . . Wheels . | . . Hover . | . . Flight . | . . Fastest Speed 50 | 50 160 Average Speed 159 | 148 160 Slowest Speed 200 | 200 200 Overloaded Moves . | . . Propulsion Burnouts . | . . Robots Hopped . | . . Potential Cave-ins . | . . Cave-ins Triggered . | . . Exploration Rate (%) 31 | 3 60 Regions Visited 1 Branch Regions . Pre-discovered Areas . | . . Known Exits Taken . | . . Unknown Exits Taken 1 | 1 . Scrap Searched . | . . Spaces Dug . | . . Terrain Destroyed . | . . Melee . | . . Projectile . | . . AOE . | . . Terrain Rammed . | . . Walls Destroyed . | . . Machines Disabled . | . . Actions | -11 -10 --------- Run | Yrd Mat Total 618 | 64 554 Wait 1 | . 1 Move 504 | 47 457 Hop . | . . Pick Up 23 | 9 14 Fast Attach 5 | 2 3 Attach 8 | 4 4 Detach . | . . Swap 4 | . 4 Drop 8 | . 8 Fire 65 | 2 63 Melee . | . . Ram . | . . Kick . | . . Crush . | . . Escape Stasis . | . . Rewire . | . . Trap . | . . Miscellaneous . | . . Route ------- -11/Scrapyard -10/Materials (discovered 3 exits: [*Mat] / [*Min x2]) History --------- Turn | Location | Event 13 | -11/Scrapyard | Discovered new exit (range 16) 93 | -11/Scrapyard | Entered Materials 328 | -10/Materials | Build established: Mutant 355 | -10/Materials | Discovered new exit (range 14) 457 | -10/Materials | Discovered new exit (range 10) 739 | -10/Materials | Discovered new exit (range 16) 893 | -10/Materials | Derelicts attacked the area 1017 | -10/Materials | Core integrity fell below 50% 1027 | -10/Materials | Core integrity fell below 20% 1031 | -10/Materials | Destroyed by G-34 Mercenary with Small Laser Last Messages --------------- 00977_ K-01 Serf destroyed. 00980_ K-01 Serf collects debris. 00981_ G-34 Mercenary destroyed. 00983_ K-01 Serf collects debris. 00986_ Extracted 10 matter. 00986_ K-01 Serf collects debris. 00989_ K-01 Serf cleans the Terminal. 00991_ K-01 Serf collects debris. 00992_ K-01 Serf cleans the Terminal. 00995_ K-01 Serf collects debris. 00995_ K-01 Serf cleans the Terminal. 00999_ K-01 Serf collects debris. 01005_ K-01 Serf cleans the Terminal. 01005_ Hrd. Light Armor Plating destroyed. 01007_ Critical hit (Burn: +37). 01009_ K-01 Serf cleans the Terminal. 01011_ Lgt. Treads destroyed. 01014_ K-01 Serf collects debris. 01018_ Ion Engine destroyed. 01019_ Lgt. Treads destroyed. Map ----- +----------------------------------------------------+ | ???????????????????????????????? ??????????????? | | ??????????????????????????????? ??????????????? | | ??????????????????????????????? ??????????????? | | ???????????????????????????????" ??????????????? | | ?????????????????????????????""" ??????????????? | | ?????????????????????????????""" #?????????????? | | ?????????????????????????????? #?????????????? | | ?????????????????????????????? #?????????????? | | ??????????????????????????????? #?????????????? | | ??????????????????????????????? #????####?????? | | ???????????????????????????????# #?? ???? | | ??????????????????????????????## ##?" #??? | | ?##########???????????????????# #"T #??? | | ?#! #???????????????????# #"" ?????? | | ?# """ #???????????????????# * + ?????????? | | ?# """ #########???????????# [#????????????? | | ?# """ ## #???????????# =#????????????? | | ?# ## #???????????## ##????????????? | | ?# """ [## ""#????????????# #?????????????? | | ?# """ ## Y"#########????# #???####??????? | | ?# """ ## ""#"""""""#????# #?? ??????? | | ?# ## #" !"! "#???##* ##?""" "??????? | | ######+#########+##" "#####%! # """ ""?????? | | g=%=== # """*""" #? | | k < k !%g%=T + =%= +? | | k @ !*==* # ! #? | | ######+#### =##### ##### # #? | | ???? ?# %#???############## ##?###########? | | ?? ## %#??????????# # ##### #???? | | # "Y" ## %=############ """ + #???? | | # """ ## ## # """ # #? | | # ## ## """ """ # """ # ##??? | | ########## ! # """ """ # """?# =##### #???? | | = != # """ """ # """?# [ #????# ##???? | | =*=T + """ """ # ??# #????# = #????? | | *%= # """ """ ####### #????# +????? | | ######+### # + #????# #????? | | ??# ## ## ! ########+##????# #????? | | ??# ## ############????? ^ ????# #????? | | ??#"" ## =# [ #?????? """ ""??# #????? | | ??#""" =## %+ #????# """ """ # #????? | | ??#""" ## *# #????# """ """ # #????? | | ??# = !## ##########???# # #????? | | ??###+##+## # ################## #????? | | ????# * [ # ## # # ####?? | | ????# # ## T ! / # #?? | | ????# # % ## + #?? | | ????# ##/#####+## """ """ # #?? | | ????# ## """ """ # ########?? | | ????# ##### ## """ """ ###+#######????? | +----------------------------------------------------+ Best States ------------- Heat Dissipation 25 Energy Generation 10 Energy Capacity 250 Matter Stores 300 Matter Capacity 300 Sight Range 16 Terrain Scan Density 10 Armor Coverage 150 Evasion (%) 40 Recoil Reduction 2 Item Schematics ----------------- None Robot Schematics ------------------ None Fabricated ------------ Nothing Repaired ---------- Nothing Studied --------- None Alien Tech Used ----------------- None Achievements -------------- None Challenges ------------ None Game ------ Seed LinearPhaseSaw Manual? 0 Play Time 00:12:46 Cumulative 30.9 hours Start 2026.04.10 @ 11:38:57 End 2026.04.10 @ 11:49:41 Sessions 1 Manual Loads 0 Difficulty Rogue Special Mode None Game No. 86 Rogue 86 Adventurer 0 Explorer 0 Win Type - Total 0 Types 0/0/0/0/0/0/0/0/0/0 Lore% 14 Gallery% 23 Achievement% 14 Wizard Run 0 Options --------- Layout 2 ASCII 0 Keyboard 1 Movement Vi Keybinds 0 Fullscreen 2 Font 20/Terminus Map View 64x51 Zoom Use 0% Tactical HUD 1 Map Filters NONE Filters NONE Steam 1 RUN: f82f5ae8-cdeb-4c3e-ba29-53db3239dfb3